bitfinex/quotes_BTCUSD_20250723
["timestamp","ask_amount","ask_price","bid_price","bid_amount"]
[1753309033349,0.21803018,118470.0,118460.0,1.13365457]
[1753309033564,0.21803018,118470.0,118460.0,1.05281457]
[1753309033770,0.21803018,118470.0,118460.0,1.18365457]
[1753309033979,0.21803018,118470.0,118460.0,1.00637955]
[1753309034183,0.21803018,118470.0,118460.0,1.19209588]
[1753309034444,0.05865195,118470.0,118460.0,1.20053712]
[1753309034668,0.23591165,118470.0,118460.0,1.20053726]
[1753309034895,0.23591165,118470.0,118460.0,1.2089785]
[1753309035341,0.23691165,118470.0,118460.0,1.20897857]
[1753309035566,0.23691165,118470.0,118460.0,1.20897814]
[1753309035804,0.2453526,118470.0,118460.0,1.20053698]
[1753309036433,0.23691201,118470.0,118460.0,1.15053698]
[1753309036643,0.23691201,118470.0,118460.0,1.20053698]
[1753309037075,0.23691201,118470.0,118460.0,1.20897786]
[1753309037722,0.05121064,118470.0,118460.0,1.20897786]
[1753309037885,0.04985064,118470.0,118460.0,1.20897786]
[1753309038284,0.05829116,118470.0,118460.0,1.20897786]
[1753309039282,0.04985064,118470.0,118460.0,1.20897786]
[1753309039878,0.04985057,118470.0,118460.0,1.20897786]
[1753309040083,0.04985057,118470.0,118460.0,1.20893786]
[1753309040283,0.05829102,118470.0,118460.0,1.20893786]
[1753309040897,0.04985057,118470.0,118460.0,1.20893786]
[1753309041731,0.05829102,118470.0,118460.0,1.20893786]
[1753309042677,0.04985057,118470.0,118460.0,1.20893786]
[1753309043158,0.04141026,118470.0,118460.0,1.20893786]
[1753309043610,0.04985057,118470.0,118460.0,1.20893786]
[1753309043796,0.05829109,118470.0,118460.0,1.20893786]
[1753309044025,0.05829102,118470.0,118460.0,1.20893786]
[1753309045060,0.04985057,118470.0,118460.0,1.20893786]
[1753309045260,0.05829102,118470.0,118460.0,1.20893786]
[1753309045477,0.2355508,118470.0,118460.0,1.05281443]
[1753309045681,0.23691137,118470.0,118460.0,0.70069569]
[1753309045891,0.22003025,118470.0,118460.0,0.47342067]
[1753309046310,0.22003025,118470.0,118460.0,0.75069554]
[1753309046510,0.22003025,118470.0,118460.0,0.75913699]
[1753309046719,0.22003025,118470.0,118460.0,0.76757837]
[1753309047756,0.35083025,118470.0,118460.0,0.63677837]
[1753309048616,0.35083025,118470.0,118460.0,0.62833699]
[1753309048817,0.35083025,118470.0,118460.0,0.61989554]
[1753309049532,0.35083025,118470.0,118460.0,0.56989554]
[1753309049731,0.35083025,118470.0,118460.0,0.61989554]
[1753309049908,0.35083025,118470.0,118460.0,0.56989568]
[1753309050086,0.42686667,118470.0,118460.0,0.34262067]
[1753309050285,0.42686667,118470.0,118460.0,0.39262067]
[1753309050712,0.217532,118450.0,118440.0,0.12480765]
[1753309050939,0.220872,118450.0,118440.0,0.50098527]
[1753309051144,0.220872,118450.0,118440.0,0.85204881]
[1753309051568,0.220872,118450.0,118440.0,1.19466948]
[1753309051783,0.220872,118450.0,118440.0,1.20311228]
[1753309052004,0.219512,118450.0,118440.0,0.52631367]
[1753309052207,0.220512,118450.0,118440.0,0.50098505]
[1753309052420,0.220512,118450.0,118430.0,0.39262066]
[1753309052421,0.21754791,118440.0,118430.0,0.39262066]
[1753309052627,0.22088791,118440.0,118430.0,0.44262066]
[1753309052852,0.22088791,118440.0,118430.0,0.09999999]
[1753309053087,0.22088791,118440.0,118430.0,0.44262066]
[1753309053321,0.22088791,118440.0,118430.0,0.09999999]
[1753309053526,0.22088791,118440.0,118430.0,0.44262066]
[1753309054851,0.22052791,118440.0,118430.0,0.61994058]
[1753309055247,0.22052791,118440.0,118430.0,0.44262066]
[1753309055468,0.22152791,118440.0,118430.0,0.44262066]
[1753309057682,0.22288791,118440.0,118430.0,0.39262067]
[1753309058146,0.23841581,118440.0,118430.0,0.39262067]
[1753309058393,0.23841581,118440.0,118430.0,0.44262066]
[1753309058642,0.23841581,118440.0,118430.0,0.39262067]
[1753309061141,0.37288791,118440.0,118430.0,0.39262067]
[1753309064550,0.20991978,118430.0,118420.0,0.39262067]
[1753309064792,0.33417612,118430.0,118420.0,0.34262067]
[1753309065053,0.33553612,118430.0,118420.0,0.34262067]
[1753309065483,0.21839461,118410.0,118400.0,0.38999999]
[1753309065697,0.35245461,118410.0,118400.0,0.68262067]
[1753309065912,0.35245461,118410.0,118400.0,0.68266979]
[1753309066128,0.35116461,118410.0,118400.0,0.39004911]
[1753309066350,0.35116461,118410.0,118400.0,0.73266978]
[1753309066778,0.35116461,118410.0,118400.0,0.68266979]
[1753309067219,0.35116461,118410.0,118400.0,0.34266979]
[1753309067441,0.35245461,118410.0,118400.0,0.34266979]
[1753309067694,0.56959039,118410.0,118400.0,0.39266979]
[1753309067916,0.57059039,118410.0,118400.0,0.39266979]
[1753309068380,0.56959039,118410.0,118400.0,0.39266979]
[1753309068618,0.97159039,118410.0,118400.0,0.39266979]
[1753309069056,0.97159039,118410.0,118400.0,4.912e-05]
[1753309069271,0.97159039,118410.0,118400.0,0.05004912]
[1753309069488,0.97159039,118410.0,118400.0,4.912e-05]
[1753309069847,1.20606769,118410.0,118400.0,4.912e-05]
[1753309070263,0.80606769,118410.0,118400.0,4.912e-05]
[1753309070888,0.82351671,118410.0,118400.0,4.912e-05]
[1753309071096,0.69479671,118410.0,118400.0,4.912e-05]
[1753309071296,0.82351671,118410.0,118400.0,4.912e-05]
[1753309071503,0.82551671,118410.0,118400.0,4.912e-05]
[1753309071713,0.69479671,118410.0,118400.0,4.912e-05]
[1753309072648,0.67734769,118410.0,118400.0,4.912e-05]
[1753309072824,0.61021191,118410.0,118400.0,0.34266979]
[1753309073058,0.74593191,118410.0,118400.0,0.34266979]
[1753309073678,0.66016461,118410.0,118400.0,0.34266979]
[1753309074644,0.68604039,118410.0,118400.0,0.34266979]
[1753309074858,0.65116461,118410.0,118400.0,0.34266979]
[1753309075069,0.65216461,118410.0,118400.0,0.34266979]
[1753309075339,0.65216461,118410.0,118400.0,4.912e-05]
[1753309075571,0.65216461,118410.0,118400.0,0.34266979]
[1753309076024,0.65646461,118410.0,118400.0,0.34266979]
[1753309076267,0.6954937,118410.0,118400.0,0.34266979]
[1753309077656,0.65516461,118410.0,118400.0,0.34266979]
[1753309079008,0.65646461,118410.0,118400.0,0.34266979]
[1753309079428,0.65646461,118410.0,118400.0,4.912e-05]
[1753309080063,0.65646461,118410.0,118400.0,0.34266979]
[1753309080289,0.50516461,118410.0,118400.0,0.34266979]
[1753309081345,0.35804461,118410.0,118400.0,0.34266979]
[1753309081561,0.47895977,118410.0,118400.0,0.87617075]
[1753309081774,0.47895977,118410.0,118400.0,0.87617083]
[1753309081988,0.47895977,118410.0,118400.0,0.53355023]
[1753309082196,0.47895977,118410.0,118400.0,0.54199589]
[1753309082636,0.17088953,118410.0,118400.0,1.00757089]
[1753309082907,0.31005462,118410.0,118400.0,1.02446199]
[1753309083128,0.31005454,118410.0,118400.0,1.01939199]
[1753309083372,0.48340428,118410.0,118400.0,1.01094655]
[1753309083607,0.47695962,118410.0,118400.0,0.45856978]
[1753309083857,0.46951475,118410.0,118400.0,0.44266978]
[1753309084094,0.48581475,118410.0,118400.0,0.62003463]
[1753309084341,0.48581475,118410.0,118400.0,0.62500463]
[1753309084848,0.46951475,118410.0,118400.0,0.62500463]
[1753309085107,0.46951475,118410.0,118400.0,0.6334505]
[1753309085382,0.3090544,118410.0,118400.0,1.017608]
[1753309085626,0.30060939,118410.0,118400.0,1.033008]
[1753309085841,0.01144459,118410.0,118400.0,1.033008]
[1753309086071,0.15060939,118410.0,118400.0,1.033008]
[1753309086303,0.53372,118410.0,118400.0,1.1174853]
[1753309086770,0.13272,118410.0,118400.0,1.1174853]
[1753309087024,0.47576337,118430.0,118420.0,0.06688867]
[1753309087246,0.60644337,118430.0,118420.0,0.5749255]
[1753309087445,0.59799985,118430.0,118420.0,0.56648106]
[1753309087868,0.59799985,118430.0,118420.0,0.5749255]
[1753309088062,0.59999985,118430.0,118420.0,0.5749255]
[1753309088505,0.59999985,118430.0,118420.0,0.58336987]
[1753309088925,0.60199985,118430.0,118420.0,0.57492557]
[1753309089133,0.60199985,118430.0,118420.0,0.59181417]
[1753309089134,0.61044337,118430.0,118420.0,0.59181417]
[1753309089386,0.60844337,118430.0,118420.0,0.59876994]
[1753309089606,0.60844337,118430.0,118420.0,0.60721424]
[1753309089836,0.60099985,118430.0,118420.0,0.60721424]
[1753309090056,0.60099985,118430.0,118420.0,0.59876994]
[1753309090262,0.45099978,118430.0,118420.0,0.59876994]
[1753309090750,0.45099978,118430.0,118420.0,0.60721424]
[1753309090967,0.85099978,118430.0,118420.0,0.59876994]
[1753309092831,0.84255612,118430.0,118420.0,0.59032557]
[1753309093510,0.84251612,118430.0,118420.0,0.59876994]
[1753309093942,0.84251612,118430.0,118420.0,0.59032557]
[1753309094993,0.84251612,118430.0,118420.0,0.39759067]
[1753309095709,0.84449612,118430.0,118420.0,0.39759067]
[1753309096587,0.86099612,118430.0,118420.0,0.39759067]
[1753309098178,0.44251612,118430.0,118420.0,0.57492557]
[1753309098658,0.71187612,118430.0,118420.0,0.57492557]
[1753309098876,0.55988703,118430.0,118420.0,0.59936987]
[1753309099094,0.86784681,118430.0,118420.0,0.60781403]
[1753309099323,0.45940351,118430.0,118420.0,0.59092557]
[1753309099550,0.45940351,118430.0,118420.0,0.60781438]
[1753309099787,0.72876308,118430.0,118420.0,0.67470276]
[1753309100002,0.47625061,118430.0,118420.0,0.68980234]
[1753309100832,0.15144316,118430.0,118420.0,0.68980234]
[1753309101078,0.30737356,118430.0,118420.0,0.68980192]
[1753309101359,0.30737349,118430.0,118420.0,0.68980192]
[1753309102125,0.2989299,118430.0,118420.0,0.68980192]
[1753309102376,0.30737349,118430.0,118420.0,0.68980192]
[1753309102837,0.46780688,118430.0,118420.0,0.64936965]
[1753309103038,0.45936344,118430.0,118420.0,0.64092542]
[1753309103483,0.45936344,118430.0,118420.0,0.64936965]
[1753309103918,0.46780724,118430.0,118420.0,0.65781381]
[1753309104372,0.29893012,118430.0,118420.0,0.68195783]
[1753309105078,0.29048653,118430.0,118420.0,0.68195783]
[1753309105323,0.29892997,118430.0,118420.0,0.68195783]
[1753309105563,0.30737356,118430.0,118420.0,0.68195783]
[1753309105778,0.143,118430.0,118420.0,0.68195783]
[1753309105968,0.2736,118430.0,118420.0,0.68195783]
[1753309106203,0.28204316,118430.0,118420.0,0.68195783]
[1753309106465,0.143,118430.0,118420.0,0.76643513]
[1753309106681,0.2736,118430.0,118420.0,1.1090558]
[1753309106888,0.143,118430.0,118420.0,1.1090558]
[1753309107109,0.143,118430.0,118420.0,1.2396158]
[1753309107766,0.142,118430.0,118420.0,1.2396158]
[1753309108410,0.14,118430.0,118420.0,1.2396158]
[1753309108611,0.141,118430.0,118420.0,1.2396158]
[1753309109685,0.141,118430.0,118420.0,1.2406158]
[1753309109915,0.141,118430.0,118420.0,1.5806158]
[1753309110300,0.14,118430.0,118420.0,1.5806158]
[1753309117330,0.14844323,118430.0,118420.0,0.71481447]
[1753309117553,0.1568866,118430.0,118420.0,1.17225513]
[1753309117764,0.14,118430.0,118420.0,1.07573513]
[1753309117972,0.14,118430.0,118420.0,1.09143513]
[1753309118190,0.14,118430.0,118420.0,1.5808758]
[1753309120552,0.14,118430.0,118420.0,1.59832482]
[1753309120780,0.13052,118460.0,118450.0,0.27647388]
[1753309120986,0.04789015,118470.0,118460.0,0.19415749]
[1753309120987,0.18681089,118470.0,118460.0,0.19415749]
[1753309121198,0.18879089,118470.0,118460.0,0.53677816]
[1753309121456,0.1972317,118470.0,118460.0,0.58990816]
[1753309121678,0.34898233,118470.0,118460.0,0.581467]
[1753309121880,0.34054181,118470.0,118460.0,0.57302562]
[1753309122083,0.35599092,118470.0,118460.0,0.57302562]
[1753309122286,0.35599092,118470.0,118460.0,0.56989562]
[1753309122501,0.36099092,118470.0,118460.0,0.56989562]
[1753309122705,0.35255018,118470.0,118460.0,0.56989562]
[1753309122923,0.34410937,118470.0,118460.0,0.39262067]
[1753309123128,0.34546937,118470.0,118460.0,0.39262067]
[1753309123964,0.34846937,118470.0,118460.0,0.39262067]
[1753309124924,0.34346937,118470.0,118460.0,0.39262067]
[1753309125141,0.34546937,118470.0,118460.0,0.39262067]
[1753309125597,0.35083884,118470.0,118460.0,0.39262067]
[1753309125820,0.35183884,118470.0,118460.0,0.39262067]
[1753309130349,0.35047884,118470.0,118460.0,0.39262067]
[1753309132661,0.35047884,118470.0,118460.0,0.56145403]
[1753309133148,0.35047884,118470.0,118460.0,0.39262067]
[1753309133644,0.35047884,118470.0,118460.0,0.56145403]
[1753309134719,0.35047884,118470.0,118460.0,0.39262067]
[1753309135575,0.35047884,118470.0,118460.0,0.05]
[1753309135787,0.35047884,118470.0,118460.0,0.39262067]
[1753309136013,0.35183884,118470.0,118460.0,0.39262067]
[1753309137185,0.35047884,118470.0,118460.0,0.39262067]
[1753309137847,0.35047884,118470.0,118460.0,0.05]
[1753309138029,0.35047884,118470.0,118460.0,0.56145403]
[1753309138486,0.35047884,118470.0,118460.0,0.39262067]
[1753309139331,0.35183884,118470.0,118460.0,0.39262067]
[1753309140878,0.35183884,118470.0,118460.0,0.34262067]
[1753309141072,0.35047884,118470.0,118460.0,0.39262067]
[1753309143461,0.35047884,118470.0,118460.0,0.05]
[1753309143697,0.35183884,118470.0,118460.0,0.39262067]
[1753309144399,0.50827488,118460.0,118450.0,0.34262067]
[1753309144621,0.51025488,118460.0,118450.0,0.34262067]
[1753309144836,0.51025488,118460.0,118450.0,0.39262067]
[1753309145261,0.46611633,118460.0,118450.0,0.57501066]
[1753309145484,0.45767488,118460.0,118450.0,0.57501066]
[1753309145699,0.45867488,118460.0,118450.0,0.39772067]
[1753309145903,0.45123336,118460.0,118450.0,0.39772067]
[1753309146111,0.46951336,118460.0,118450.0,0.39772067]
[1753309146327,0.86951336,118460.0,118450.0,0.39262067]
[1753309146979,0.88481336,118460.0,118450.0,0.34262067]
[1753309147196,0.88481336,118460.0,118450.0,0.39262067]
[1753309147399,0.86951336,118460.0,118450.0,0.39262067]
[1753309147820,0.86951336,118460.0,118450.0,0.39559067]
[1753309147975,0.86951336,118460.0,118450.0,0.39772067]
[1753309150003,0.86947336,118460.0,118450.0,0.57501066]
[1753309150353,0.86947336,118460.0,118450.0,0.39772067]
[1753309150591,0.73911336,118460.0,118450.0,0.56656828]
[1753309150827,0.73911336,118460.0,118450.0,0.57501051]
[1753309150828,0.85317336,118460.0,118450.0,0.57501051]
[1753309151036,0.86161488,118460.0,118450.0,0.58345267]
[1753309151230,0.45963488,118460.0,118450.0,0.60033678]
[1753309151633,0.45963488,118460.0,118450.0,0.59189476]
[1753309152104,0.45963488,118460.0,118450.0,0.60689476]
[1753309153125,0.45963488,118460.0,118450.0,0.59845267]
[1753309154028,0.47651785,118460.0,118450.0,0.60689469]
[1753309154349,0.47651785,118460.0,118450.0,0.62377852]
[1753309154588,0.30768449,118460.0,118450.0,0.62377852]
[1753309155032,0.29924283,118460.0,118450.0,0.62377852]
[1753309155676,0.30768392,118460.0,118450.0,0.62377852]
[1753309155900,0.30768385,118460.0,118450.0,0.62377852]
[1753309156111,0.29080116,118460.0,118450.0,0.81943851]
[1753309156541,0.29080109,118460.0,118450.0,0.81943851]
[1753309157013,0.28236,118460.0,118450.0,0.81943851]
[1753309157237,0.29080102,118460.0,118450.0,0.81943851]
[1753309157448,0.002,118460.0,118450.0,0.90391581]
[1753309159054,0.01044102,118460.0,118450.0,0.90391581]
[1753309159262,0.01044116,118460.0,118450.0,0.90391581]
[1753309159461,0.01044109,118460.0,118450.0,0.90391581]
[1753309159690,0.002,118460.0,118450.0,0.90391581]
[1753309160098,0.002,118460.0,118450.0,0.91613336]
[1753309160308,0.01044102,118460.0,118450.0,0.43093514]
[1753309160511,0.01044102,118460.0,118450.0,0.74137198]
[1753309160512,0.20459845,118460.0,118450.0,0.74137198]
[1753309160713,0.20459902,118460.0,118450.0,0.87169191]
[1753309160973,0.21304068,118460.0,118450.0,0.74137191]
[1753309161178,0.20459944,118460.0,118450.0,0.87169191]
[1753309161375,0.01888283,118460.0,118450.0,0.88013379]
[1753309161577,0.0188824,118460.0,118450.0,0.88013379]
[1753309161938,0.01044102,118460.0,118450.0,0.89593379]
[1753309162418,0.002,118460.0,118450.0,0.89593379]
[1753309163085,0.002,118460.0,118450.0,0.76561379]
[1753309163517,0.002,118460.0,118450.0,0.89593379]
[1753309167642,0.002,118460.0,118450.0,1.23593379]
[1753309169121,0.001,118460.0,118450.0,1.23593379]
[1753309169365,0.53655026,118470.0,118460.0,0.25985748]
[1753309169567,0.53655026,118470.0,118460.0,0.70448545]
[1753309169815,0.54499064,118470.0,118460.0,0.83777545]
[1753309170076,0.55343116,118470.0,118460.0,0.83777545]
[1753309170311,0.56187183,118470.0,118460.0,0.83777545]
[1753309170525,0.55443116,118470.0,118460.0,0.849993]
[1753309170740,0.54599064,118470.0,118460.0,0.83777545]
[1753309171173,0.40723026,118470.0,118460.0,0.88777545]
[1753309171390,0.40823026,118470.0,118460.0,0.88777545]
[1753309171828,0.53851026,118470.0,118460.0,0.88777545]
[1753309172029,0.40823026,118470.0,118460.0,0.88777545]
[1753309173540,0.40823026,118470.0,118460.0,0.75745545]
[1753309173748,0.40823026,118470.0,118460.0,0.88773545]
[1753309178452,0.41667057,118470.0,118460.0,0.88773545]
[1753309178690,0.40823026,118470.0,118460.0,0.88773545]
[1753309180049,0.40823026,118470.0,118460.0,1.23035612]
[1753309180261,0.41075026,118470.0,118460.0,1.23035612]
[1753309180515,0.01075026,118470.0,118460.0,0.88773545]
[1753309185343,0.01919057,118470.0,118460.0,0.88773545]
[1753309185757,0.01075026,118470.0,118460.0,0.88773545]
[1753309190262,0.01075026,118470.0,118460.0,1.23035612]
[1753309192346,0.01075026,118470.0,118460.0,1.57035612]
[1753309193896,0.00975026,118470.0,118460.0,1.57035612]
[1753309194079,0.00875026,118470.0,118460.0,1.57035612]
[1753309199078,0.00875026,118470.0,118460.0,1.57023612]
[1753309199282,0.00875026,118470.0,118460.0,1.65479684]
[1753309201391,0.00875026,118470.0,118460.0,1.56923166]
[1753309201850,0.00875026,118470.0,118460.0,1.58668068]
[1753309202700,0.02,118480.0,118470.0,0.66644114]
[1753309202910,0.02,118480.0,118470.0,1.56738532]
[1753309203071,0.02,118480.0,118470.0,1.57039532]
[1753309203500,0.02,118480.0,118470.0,1.44027532]
[1753309203704,0.02,118480.0,118470.0,1.57039532]
[1753309204320,0.02,118480.0,118470.0,1.57139532]
[1753309204557,0.02,118480.0,118470.0,1.46666953]
[1753309204760,0.02,118480.0,118470.0,1.59678953]
[1753309205304,0.02,118480.0,118470.0,1.59778953]
[1753309212389,0.02,118480.0,118470.0,1.57239532]
[1753309213544,0.02,118480.0,118470.0,1.59751037]
[1753309219892,0.03738,118480.0,118470.0,1.03775193]
[1753309220138,0.05358,118480.0,118470.0,1.16779193]
[1753309220850,0.03738,118480.0,118470.0,1.56314037]
[1753309221067,0.03738,118480.0,118470.0,1.56512037]
[1753309221940,0.0354,118480.0,118470.0,1.56512037]
[1753309222167,0.02,118480.0,118470.0,1.56512037]
[1753309222825,0.02,118480.0,118470.0,1.58172037]
[1753309223046,0.02,118480.0,118470.0,1.59772037]
[1753309224207,0.02,118480.0,118470.0,1.58172037]
[1753309224449,0.02,118480.0,118470.0,1.56512037]
[1753309224942,0.03798,118480.0,118470.0,1.56512037]
[1753309228644,0.036,118480.0,118470.0,1.56512037]
[1753309229330,0.02,118480.0,118470.0,1.56512037]
[1753309235276,0.02,118480.0,118470.0,1.58102037]
[1753309235507,0.02,118480.0,118470.0,1.59622037]
[1753309236956,0.0002,118490.0,118480.0,0.32472471]
[1753309237219,0.00024911,118490.0,118480.0,1.22548889]
[1753309237477,0.00024911,118490.0,118480.0,1.22869889]
[1753309239871,0.00024911,118490.0,118480.0,1.22865889]
[1753309241052,0.00024911,118490.0,118480.0,1.06809889]
[1753309241294,0.01822911,118490.0,118480.0,1.14805889]
[1753309241524,0.03332911,118490.0,118480.0,1.14600889]
[1753309241764,0.03332911,118490.0,118480.0,1.19600889]
[1753309241994,0.01822911,118490.0,118480.0,1.19600889]
[1753309242223,0.01822911,118490.0,118480.0,1.19805889]
[1753309247190,0.01624911,118490.0,118480.0,1.19805889]
[1753309247438,0.00024911,118490.0,118480.0,1.22855889]
[1753309249833,0.00024911,118490.0,118480.0,1.24596791]
[1753309250805,1e-08,118490.0,118480.0,1.92808635]
[1753309251906,1e-08,118490.0,118480.0,1.93108635]
[1753309252144,0.0108639,118500.0,118490.0,0.27530833]
[1753309252402,0.01135505,118500.0,118490.0,1.17599251]
[1753309252674,0.01135505,118500.0,118490.0,1.2292025]
[1753309253500,0.01135505,118500.0,118490.0,1.2302025]
[1753309254445,0.01135505,118500.0,118490.0,1.2312025]
[1753309256434,0.01135505,118500.0,118490.0,0.88908406]
[1753309256664,0.01135505,118500.0,118490.0,1.2312025]
[1753309259248,0.01135505,118500.0,118490.0,0.88908406]
[1753309261410,0.01135505,118500.0,118490.0,0.88904406]
[1753309264323,0.01135505,118500.0,118490.0,0.87344406]
[1753309269493,0.01135505,118500.0,118490.0,0.88994406]
[1753309269939,0.01135505,118500.0,118490.0,0.87344406]
[1753309272798,0.01135505,118500.0,118490.0,0.74356406]
[1753309273284,0.01135505,118500.0,118490.0,0.87340406]
[1753309279114,0.04285505,118500.0,118490.0,0.67796407]
[1753309279344,0.02943505,118500.0,118490.0,0.85780406]
[1753309279763,0.04483505,118500.0,118490.0,0.85254406]
[1753309279940,0.04483505,118500.0,118490.0,0.67270407]
[1753309280174,0.04483505,118500.0,118490.0,0.85254406]
[1753309280648,0.04483505,118500.0,118490.0,0.72270406]
[1753309280875,0.04483505,118500.0,118490.0,0.85547406]
[1753309281314,0.02943505,118500.0,118490.0,0.85759406]
[1753309283063,0.02943505,118500.0,118490.0,0.85755406]
[1753309283479,0.02943505,118500.0,118490.0,0.72775406]
[1753309283693,0.02943505,118500.0,118490.0,0.85755406]
[1753309285302,0.02745505,118500.0,118490.0,0.85755406]
[1753309287189,0.01135505,118500.0,118490.0,1.28486286]
[1753309289489,0.01135505,118500.0,118490.0,1.30126286]
[1753309289921,0.01135505,118500.0,118490.0,1.28486286]
[1753309290365,0.01135505,118500.0,118490.0,1.30126286]
[1753309290804,0.01135505,118500.0,118490.0,1.31776286]
[1753309291015,0.01135505,118500.0,118490.0,1.70247648]
[1753309291225,0.01135505,118500.0,118490.0,1.7199255]
[1753309292136,0.01135505,118500.0,118490.0,2.0599255]
[1753309292347,0.01135505,118500.0,118490.0,2.0849825]
[1753309293380,0.01135505,118500.0,118490.0,1.6145266]
[1753309296013,0.01135505,118500.0,118490.0,1.27264412]
[1753309296542,0.01135505,118500.0,118490.0,1.6144866]
[1753309296741,0.01135505,118500.0,118490.0,1.27264412]
[1753309296941,0.01135505,118500.0,118490.0,1.4847266]
[1753309297175,0.01135505,118500.0,118490.0,1.6144866]
[1753309300117,0.01135505,118500.0,118490.0,1.4847266]
[1753309300323,0.01135505,118500.0,118490.0,1.6144866]
[1753309301150,0.01135505,118500.0,118490.0,1.4847266]
[1753309301364,0.01135505,118500.0,118490.0,1.6144866]
[1753309302650,0.01135505,118500.0,118490.0,1.9130866]
[1753309302867,0.01135505,118500.0,118490.0,1.7833266]
[1753309303304,0.01135505,118500.0,118490.0,1.57124412]
[1753309303594,0.01135505,118500.0,118490.0,1.9130866]
[1753309307387,0.01135505,118500.0,118490.0,1.57124412]
[1753309307629,0.01135505,118500.0,118490.0,1.44148412]
[1753309307834,0.02755505,118500.0,118490.0,1.40858412]
[1753309308040,0.05567123,118500.0,118490.0,1.4957981]
[1753309308250,0.07067123,118500.0,118490.0,1.4436781]
[1753309308403,0.07067123,118500.0,118490.0,1.4907481]
[1753309308631,0.07067123,118500.0,118490.0,1.1921481]
[1753309309108,0.07067123,118500.0,118490.0,1.1953181]
[1753309310381,0.07067123,118500.0,118490.0,1.1972781]
[1753309310639,0.05567123,118500.0,118490.0,1.1972781]
[1753309313088,0.07147123,118500.0,118490.0,1.0124281]
[1753309313434,0.07283123,118500.0,118490.0,0.8521481]
[1753309313634,0.0812694,118500.0,118490.0,1.1921481]
[1753309314696,0.0812694,118500.0,118490.0,1.0614281]
[1753309314936,0.0812694,118500.0,118490.0,1.1901481]
[1753309315147,0.07147123,118500.0,118490.0,1.1901481]
[1753309316421,0.07147123,118500.0,118490.0,1.1952781]
[1753309316627,0.07147123,118500.0,118490.0,1.20749565]
[1753309316813,0.07147123,118500.0,118490.0,1.1952781]
[1753309318022,0.03909192,118500.0,118490.0,1.1952781]
[1753309318557,0.05519192,118500.0,118490.0,1.1952781]
[1753309321078,0.03909192,118500.0,118490.0,1.2266781]
[1753309321318,0.03909192,118500.0,118490.0,1.43880058]
[1753309321529,0.03909192,118500.0,118490.0,1.24412712]
[1753309325179,0.03909192,118500.0,118490.0,1.24408712]
[1753309326354,0.03909192,118500.0,118490.0,1.11440712]
[1753309326596,0.03909192,118500.0,118490.0,1.24408712]
[1753309328128,0.03909192,118500.0,118490.0,1.5859296]
[1753309328969,0.03909192,118500.0,118490.0,1.26944112]
[1753309331716,0.01295574,118500.0,118490.0,1.26944112]
[1753309332604,0.06703563,118500.0,118490.0,1.26944112]
[1753309334398,0.06703563,118500.0,118490.0,1.26940112]
[1753309335362,0.06703563,118500.0,118490.0,1.12446112]
[1753309335587,0.06703563,118500.0,118490.0,1.25410112]
[1753309337365,0.06703563,118500.0,118490.0,1.23800112]
[1753309337571,0.06703563,118500.0,118490.0,1.10836112]
[1753309337794,0.06703563,118500.0,118490.0,1.23800112]
[1753309338339,0.06703563,118500.0,118490.0,1.21264712]
[1753309341278,0.06703563,118500.0,118490.0,1.22854712]
[1753309342960,0.06703563,118500.0,118490.0,1.25390112]
[1753309344151,0.06703563,118500.0,118490.0,1.22854712]
[1753309344828,0.06703563,118500.0,118490.0,1.25390112]
[1753309345811,0.06703563,118500.0,118490.0,1.12426112]
[1753309346038,0.06703563,118500.0,118490.0,1.22854712]
[1753309346777,0.06703563,118500.0,118490.0,1.25390112]
[1753309347142,0.06703563,118500.0,118490.0,1.68139074]
[1753309349520,0.06703563,118500.0,118490.0,1.65603674]
[1753309349733,0.06703563,118500.0,118490.0,1.69360829]
[1753309349940,0.06703563,118500.0,118490.0,1.68139074]
[1753309350382,0.08313563,118500.0,118490.0,1.64013674]
[1753309354043,0.06703563,118500.0,118490.0,1.64013674]
[1753309355934,0.06703563,118500.0,118490.0,1.68159074]
[1753309356859,0.06703563,118500.0,118490.0,1.65623674]
[1753309358045,0.06703563,118500.0,118490.0,1.65619674]
[1753309360356,0.06703563,118500.0,118490.0,1.64009674]
[1753309363500,0.06703563,118500.0,118490.0,1.65539674]
[1753309364760,0.06703563,118500.0,118490.0,1.64009674]
[1753309366240,0.06703563,118500.0,118490.0,1.64005674]
[1753309366644,0.10051563,118500.0,118490.0,1.56747772]
[1753309367079,0.10051563,118500.0,118490.0,1.61747772]
[1753309367514,0.10051563,118500.0,118490.0,1.23281167]
[1753309367725,0.10051563,118500.0,118490.0,1.61747772]
[1753309367931,0.10051563,118500.0,118490.0,1.56747772]
[1753309368387,0.10051563,118500.0,118490.0,1.61747772]
[1753309373294,0.10051563,118500.0,118490.0,0.84814562]
[1753309373503,0.10051563,118500.0,118490.0,1.61747772]
[1753309375385,0.10051563,118500.0,118490.0,0.84814562]
[1753309375600,0.10051563,118500.0,118490.0,1.61747772]
[1753309375831,0.10051563,118500.0,118490.0,0.84814562]
[1753309376049,0.10051563,118500.0,118490.0,1.61747772]
[1753309376704,0.11739204,118500.0,118490.0,0.71858562]
[1753309376947,0.13562903,118500.0,118490.0,1.13277168]
[1753309377179,0.1440677,118500.0,118490.0,1.18277167]
[1753309377413,0.12719043,118500.0,118490.0,1.18277167]
[1753309377628,0.13562903,118500.0,118490.0,1.18277167]
[1753309378083,0.1440677,118500.0,118490.0,1.18277167]
[1753309378508,0.13562903,118500.0,118490.0,1.18277167]
[1753309378920,0.1440677,118500.0,118490.0,1.18277167]
[1753309379336,0.13562903,118500.0,118490.0,1.18277167]
[1753309380403,0.12719043,118500.0,118490.0,1.18277167]
[1753309380872,0.11739204,118500.0,118490.0,1.23277167]
[1753309381094,0.11739204,118500.0,118490.0,1.18277167]
[1753309381309,0.11739204,118500.0,118490.0,1.23277167]
[1753309381528,0.12583043,118500.0,118490.0,1.23277167]
[1753309382010,0.13426896,118500.0,118490.0,1.18277167]
[1753309382217,0.29596766,118500.0,118490.0,1.0814161]
[1753309382446,0.28752927,118500.0,118490.0,0.90418604]
[1753309382668,0.28752927,118500.0,118490.0,0.43466605]
[1753309383542,0.28752927,118500.0,118490.0,0.62877445]
[1753309383815,0.41904927,118500.0,118490.0,0.62877445]
[1753309384018,0.29052927,118500.0,118490.0,0.62877445]
[1753309384455,0.28952927,118500.0,118490.0,0.62877445]
[1753309385365,0.28952927,118500.0,118490.0,0.62033535]
[1753309385573,0.28952927,118500.0,118490.0,0.61189611]
[1753309385790,0.29052927,118500.0,118490.0,0.62033542]
[1753309386006,0.29052927,118500.0,118490.0,0.62877466]
[1753309386217,0.29052927,118500.0,118490.0,0.63721383]
[1753309387034,0.29052927,118500.0,118490.0,0.64565293]
[1753309387251,0.29896808,118500.0,118490.0,0.64565251]
[1753309387935,0.1119538,118500.0,118490.0,1.0356525]
[1753309388159,0.2583505,118500.0,118490.0,1.0356525]
[1753309388382,0.24991204,118500.0,118490.0,1.0356525]
[1753309388617,0.24991204,118500.0,118490.0,1.63431585]